bitfinex/quotes_BTCUSD_20220207
["timestamp","ask_amount","ask_price","bid_price","bid_amount"]
[1644244985965,0.079996,43342.0,43341.0,0.48]
[1644244986166,0.074996,43342.0,43341.0,0.48]
[1644244986363,4.95677966,43343.0,43341.0,0.48]
[1644244986608,4.95677966,43343.0,43342.0,0.78905561]
[1644244986609,4.61074166,43343.0,43342.0,0.78905561]
[1644244986897,4.61074166,43343.0,43342.0,0.2478335]
[1644244987096,4.25973966,43343.0,43342.0,0.2478335]
[1644244987298,4.25973966,43343.0,43342.0,0.5478335]
[1644244987496,4.25973966,43343.0,43342.0,0.7055195]
[1644244987699,3.91375266,43343.0,43342.0,0.5055195]
[1644244987898,3.91375266,43343.0,43342.0,0.4055195]
[1644244988100,3.56772766,43343.0,43342.0,0.7555195]
[1644244988297,3.56772766,43343.0,43342.0,0.4555195]
[1644244988499,3.56272766,43343.0,43342.0,0.5555195]
[1644244988807,1.45017115,43343.0,43342.0,0.88859441]
[1644244989001,1.45017115,43343.0,43342.0,0.9555195]
[1644244989201,1.45017115,43343.0,43342.0,0.696586]
[1644244989398,1.45017115,43343.0,43342.0,0.996586]
[1644244989800,1.45017115,43343.0,43342.0,0.696586]
[1644244989999,1.45017115,43343.0,43342.0,0.96037165]
[1644244990204,0.1271795,43380.0,43346.0,0.057662]
[1644244990468,0.05988467,43380.0,43374.0,0.05]
[1644244990672,0.05988467,43380.0,43379.0,0.24478701]
[1644244990865,0.05988467,43380.0,43379.0,0.05]
[1644244991067,0.05988467,43380.0,43379.0,0.425]
[1644244991274,0.002,43383.0,43381.0,0.065]
[1644244991470,0.002,43383.0,43381.0,0.1039]
[1644244991669,0.024,43387.0,43384.0,0.06]
[1644244991865,0.024,43387.0,43384.0,0.3591]
[1644244992270,0.024,43387.0,43385.0,0.05655836]
[1644244992467,0.024,43387.0,43379.0,0.59521827]
[1644244992468,0.005,43385.0,43379.0,0.48]
[1644244992670,0.8,43379.0,43364.0,0.0461]
[1644244992868,0.8,43379.0,43342.0,0.5]
[1644244992869,0.8,43364.0,43342.0,0.5]
[1644244993068,0.8,43364.0,43344.0,0.5]
[1644244993069,0.11,43363.0,43344.0,0.5]
[1644244993268,0.26678002,43379.0,43362.0,0.05]
[1644244993472,0.26678002,43379.0,43363.0,0.3]
[1644244993473,0.26091118,43379.0,43363.0,0.3]
[1644244993674,1.7671,43378.0,43363.0,0.3]
[1644244993869,1.7671,43378.0,43368.0,0.00055506]
[1644244993870,0.7787,43378.0,43368.0,0.00055506]
[1644244994297,0.9884,43372.0,43368.0,5.06e-06]
[1644244994495,0.8787,43378.0,43368.0,5.06e-06]
[1644244994496,0.9884,43371.0,43368.0,5.06e-06]
[1644244994695,0.05,43369.0,43368.0,5.06e-06]
[1644244994896,1.2884,43369.0,43343.0,0.05]
[1644244995097,0.05,43374.0,43349.0,0.05]
[1644244995297,0.26333478,43360.0,43350.0,0.50346546]
[1644244995497,0.26333478,43360.0,43345.0,0.05]
[1644244995698,0.26333478,43360.0,43346.0,0.3]
[1644244995899,0.08082692,43365.0,43350.0,0.12630106]
[1644244996097,0.2441,43376.0,43351.0,0.3]
[1644244996400,0.2441,43376.0,43353.0,0.05]
[1644244996605,0.2296,43387.0,43375.0,0.05]
[1644244996606,0.002,43387.0,43375.0,0.05]
[1644244996804,0.002,43387.0,43384.0,0.05]
[1644244997004,0.002,43387.0,43374.0,0.0389]
[1644244997005,0.07215981,43381.0,43374.0,0.0389]
[1644244997206,0.27028822,43385.0,43374.0,0.0389]
[1644244997403,0.05,43383.0,43377.0,0.026]
[1644244997601,0.05,43383.0,43380.0,0.057626]
[1644244997852,0.024,43381.0,43374.0,0.0649]
[1644244998057,0.27559862,43382.0,43376.0,0.026]
[1644244998254,0.00113996,43385.0,43376.0,0.026]
[1644244998651,0.00018271,43381.0,43376.0,0.026]
[1644244998955,0.00018271,43381.0,43364.0,0.3]
[1644244998956,0.024,43377.0,43364.0,0.3]
[1644244999158,0.024,43377.0,43370.0,0.026]
[1644244999353,0.32458789,43377.0,43370.0,0.05]
[1644244999553,0.32458789,43377.0,43367.0,0.01852572]
[1644244999754,0.32458789,43377.0,43362.0,0.3]
[1644244999755,0.24349698,43370.0,43362.0,0.3]
[1644244999954,0.2636667,43363.0,43362.0,0.3]
[1644245000157,0.00113996,43385.0,43366.0,0.115283]
[1644245000357,0.00113996,43385.0,43379.0,0.05]
[1644245000756,0.04264152,43390.0,43380.0,0.3389]
[1644245000757,0.17184043,43389.0,43380.0,0.3389]
[1644245000956,0.17184043,43389.0,43385.0,0.01870487]
[1644245001157,0.38240806,43387.0,43385.0,0.01870487]
[1644245001457,0.38240806,43387.0,43370.0,0.0389]
[1644245001458,0.8,43386.0,43367.0,0.230484]
[1644245001716,0.8,43386.0,43374.0,0.0002]
[1644245002199,0.24632648,43381.0,43374.0,0.0002]
[1644245002796,0.24632648,43381.0,43369.0,0.057646]
[1644245002995,0.31981411,43379.0,43369.0,0.057646]
[1644245003196,0.31981411,43379.0,43368.0,0.3]
[1644245003397,0.25027097,43368.0,43367.0,0.00110144]
[1644245003597,0.06377029,43378.0,43358.0,0.27478144]
[1644245003598,0.8,43378.0,43358.0,0.27478144]
[1644245003899,0.66632648,43381.0,43367.0,0.05]
[1644245004096,0.3,43380.0,43367.0,0.05]
[1644245004298,0.2,43380.0,43369.0,0.77667996]
[1644245004496,0.2313203,43380.0,43369.0,0.77667996]
[1644245004696,0.41253124,43370.0,43369.0,0.77667996]
[1644245004897,0.20957475,43370.0,43369.0,0.77667996]
[1644245005097,0.42,43381.0,43369.0,0.77667996]
[1644245005098,0.01812853,43380.0,43369.0,0.77667996]
[1644245005349,0.01812853,43380.0,43370.0,0.3]
[1644245005548,0.42,43381.0,43370.0,0.3]
[1644245005750,0.42,43381.0,43369.0,0.82667996]
[1644245005949,0.26293385,43374.0,43369.0,0.82667996]
[1644245006148,0.23045746,43374.0,43369.0,1.09384474]
[1644245006550,0.23045746,43374.0,43369.0,0.82667996]
[1644245007549,0.42,43381.0,43369.0,1.14865798]
[1644245007750,0.42,43381.0,43369.0,1.09865798]
[1644245007950,0.02169058,43382.0,43369.0,0.77667996]
[1644245008151,0.02169058,43382.0,43381.0,0.05]
[1644245008849,0.02169058,43382.0,43379.0,0.0389]
[1644245008850,0.08710807,43382.0,43379.0,0.0339]
[1644245009119,0.00018271,43383.0,43381.0,0.05]
[1644245009310,0.0184,43385.0,43382.0,0.3]
[1644245009514,0.002,43387.0,43384.0,0.05]
[1644245009911,0.002,43387.0,43384.0,0.045]
[1644245010114,0.009,43388.0,43384.0,0.045]
[1644245010309,0.009,43388.0,43387.0,0.045]
[1644245010715,0.00960716,43388.0,43387.0,0.045]
[1644245011236,0.2360925,43397.0,43388.0,0.3]
[1644245011412,0.99299637,43408.0,43388.0,0.3]
[1644245011414,0.30430688,43399.0,43388.0,0.3]
[1644245011614,0.00463704,43403.0,43389.0,0.05]
[1644245011812,0.00463704,43403.0,43396.0,0.02160002]
[1644245012214,0.00463704,43403.0,43396.0,0.23669234]
[1644245012411,0.00463704,43403.0,43396.0,0.01570002]
[1644245012611,0.00075868,43405.0,43401.0,0.22639691]
[1644245012612,0.08552659,43405.0,43401.0,0.22639691]
[1644245012848,0.08552659,43405.0,43396.0,0.01570002]
[1644245012849,0.00927408,43404.0,43396.0,0.01570002]
[1644245013452,0.06709953,43409.0,43401.0,0.05]
[1644245013651,0.06709953,43409.0,43403.0,0.057603]
[1644245013851,0.06709953,43409.0,43399.0,0.115205]
[1644245014350,0.1991121,43408.0,43399.0,0.115205]
[1644245014554,0.26002199,43400.0,43396.0,0.01570002]
[1644245014951,0.26002199,43400.0,43388.0,0.115229]
[1644245014952,0.8,43399.0,43388.0,0.115229]
[1644245015154,0.8,43399.0,43381.0,0.3]
[1644245015351,0.8,43399.0,43385.0,0.5]
[1644245015551,0.56156835,43398.0,43391.0,0.0005646]
[1644245015751,0.64580292,43398.0,43391.0,0.0005646]
[1644245015950,0.33878905,43397.0,43391.0,0.0005646]
[1644245016602,0.07219843,43384.0,43378.0,0.02005959]
[1644245016797,0.07219843,43384.0,43382.0,0.0195792]
[1644245016998,0.22928666,43385.0,43382.0,0.0195792]
[1644245017209,0.22928666,43385.0,43373.0,0.00225932]
[1644245017210,1.15,43384.0,43373.0,0.00225932]
[1644245017398,0.3,43383.0,43373.0,5.932e-05]
[1644245017597,0.3195792,43383.0,43373.0,5.932e-05]
[1644245017797,0.25307776,43372.0,43369.0,0.77667996]
[1644245018097,0.0195792,43383.0,43369.0,0.77167996]
[1644245018098,0.37950177,43375.0,43369.0,0.77167996]
[1644245018400,0.07547741,43374.0,43369.0,0.42277996]
[1644245018599,0.0195792,43383.0,43370.0,0.3]
[1644245018799,0.0195792,43383.0,43374.0,0.05]
[1644245019000,0.22928666,43385.0,43370.0,0.35]
[1644245019001,0.13606586,43385.0,43370.0,0.35]
[1644245019205,0.21505806,43386.0,43370.0,0.58679438]
[1644245019400,0.21505806,43386.0,43370.0,0.3]
[1644245019603,0.21505806,43386.0,43370.0,0.05]
[1644245019804,0.0999,43388.0,43374.0,0.05]
[1644245020000,0.0005,43395.0,43371.0,0.05]
[1644245020002,0.3505,43395.0,43371.0,0.05]
[1644245020210,0.4595,43396.0,43382.0,0.05]
[1644245020211,0.44256901,43396.0,43382.0,0.05]
[1644245020449,0.05,43399.0,43383.0,0.50532864]
[1644245020450,0.22321588,43391.0,43383.0,0.50532864]
[1644245020650,0.08534472,43395.0,43386.0,0.057627]
[1644245020848,0.08534472,43395.0,43384.0,0.3]
[1644245021049,0.0999,43401.0,43399.0,0.33743524]
[1644245021450,1.35992998,43400.0,43399.0,1.11e-06]
[1644245021651,0.21409858,43377.0,43366.0,0.26865144]
[1644245021850,0.21409858,43377.0,43366.0,0.05]
[1644245022250,0.3,43392.0,43366.0,0.05]
[1644245022463,1.4739,43398.0,43375.0,0.115268]
[1644245022650,0.08344639,43377.0,43376.0,0.3]
[1644245022852,0.33480683,43397.0,43375.0,0.115268]
[1644245023051,0.1,43397.0,43376.0,0.3]
[1644245023252,0.01841294,43377.0,43376.0,0.3]
[1644245023451,0.01841294,43377.0,43373.0,0.20402912]
[1644245023652,0.01841294,43377.0,43373.0,0.25402912]
[1644245023850,0.01841294,43377.0,43374.0,0.3]
[1644245024105,0.01841294,43377.0,43374.0,0.357638]
[1644245024398,0.01841294,43377.0,43374.0,0.407638]
[1644245025198,0.38484242,43392.0,43374.0,0.407638]
[1644245025397,0.0692334,43382.0,43374.0,0.407638]
[1644245025597,0.28807733,43382.0,43372.0,0.115278]
[1644245025798,0.28807733,43382.0,43372.0,0.165278]
[1644245026397,0.05,43381.0,43372.0,0.115278]
[1644245026598,0.08829038,43374.0,43372.0,0.2688611]
[1644245026798,0.37584626,43391.0,43372.0,0.2688611]
[1644245027000,0.42,43392.0,43372.0,0.2688611]
[1644245027001,0.42,43392.0,43373.0,0.357639]
[1644245027199,0.01865291,43385.0,43373.0,0.357639]
[1644245028046,0.06734689,43377.0,43373.0,0.357639]
[1644245028249,0.06734689,43377.0,43373.0,0.057639]
[1644245028448,0.05,43375.0,43366.0,0.43662666]
[1644245028646,0.01865291,43385.0,43366.0,0.22515666]
[1644245028849,0.00101026,43376.0,43375.0,0.25317212]
[1644245029046,0.00101026,43376.0,43375.0,0.55317212]
[1644245029246,0.26083926,43384.0,43370.0,0.0025935]
[1644245029449,0.0474065,43376.0,43367.0,0.53314659]
[1644245029648,0.21343276,43384.0,43368.0,0.31911]
[1644245029649,0.31515938,43383.0,43368.0,0.31911]
[1644245029846,0.0660996,43370.0,43369.0,0.00073904]
[1644245030048,0.0660996,43370.0,43369.0,0.23057]
[1644245030251,0.7,43369.0,43363.0,0.00295659]
[1644245030452,0.0660996,43370.0,43364.0,0.057656]
[1644245030648,0.3631898,43374.0,43364.0,0.057656]
[1644245030649,0.02058551,43367.0,43364.0,0.057656]
[1644245030947,0.02058551,43367.0,43361.0,0.08457162]
[1644245031149,0.02058551,43367.0,43366.0,0.0025935]
[1644245031607,0.02058551,43367.0,43362.0,0.0025935]
[1644245031608,0.07886753,43367.0,43362.0,0.0025935]
[1644245031900,0.07886753,43367.0,43361.0,0.08457162]
[1644245032298,0.00058551,43367.0,43361.0,0.08457162]
[1644245032699,0.00058551,43367.0,43366.0,0.0025935]
[1644245032901,0.00058551,43367.0,43366.0,0.115289]
[1644245033399,0.00058551,43367.0,43361.0,0.08457162]
[1644245033400,0.1354288,43367.0,43361.0,0.08457162]
[1644245033700,0.00058551,43367.0,43362.0,0.057654]
[1644245033900,0.41359256,43363.0,43361.0,0.08457162]
[1644245034100,0.04652853,43363.0,43361.0,0.08457162]
[1644245034500,0.04652853,43368.0,43361.0,0.08457162]
[1644245034701,0.06972916,43363.0,43361.0,0.08457162]
[1644245034901,0.04652853,43366.0,43361.0,0.08457162]
[1644245035099,0.32117797,43365.0,43361.0,0.08457162]
[1644245035348,0.04652853,43366.0,43361.0,0.08457162]
[1644245035552,0.01801336,43371.0,43362.0,0.00347147]
[1644245035752,0.01801336,43371.0,43368.0,0.00347147]
[1644245035949,0.01801336,43371.0,43364.0,0.00347147]
[1644245036151,0.01801336,43371.0,43370.0,0.00347147]
[1644245036348,0.28845232,43371.0,43370.0,0.00347147]
[1644245036549,0.37228437,43377.0,43361.0,0.08457162]
[1644245036550,0.38511051,43376.0,43361.0,0.08457162]
[1644245036751,1.37351051,43376.0,43361.0,0.08457162]
[1644245036949,1.37351051,43376.0,43361.0,0.02145827]
[1644245036950,0.85,43374.0,43361.0,0.02145827]
[1644245037150,0.05,43371.0,43361.0,0.02145827]
[1644245037348,0.9884,43372.0,43351.0,0.02]
[1644245037349,0.02138665,43367.0,43351.0,0.02]
[1644245037549,1.30978665,43367.0,43351.0,0.02]
[1644245037749,0.21409002,43361.0,43351.0,0.02]
[1644245037951,0.21409002,43361.0,43346.0,0.19170051]
[1644245038152,0.8,43360.0,43345.0,0.19170051]
[1644245038350,0.8,43360.0,43346.0,0.19170051]
[1644245038552,0.22106607,43350.0,43345.0,0.00225316]
[1644245038750,0.24451916,43354.0,43345.0,0.00225316]
[1644245038951,0.06363491,43349.0,43345.0,0.00225316]
[1644245039208,0.8,43360.0,43345.0,0.05225316]
[1644245039413,0.34507952,43366.0,43346.0,0.42240051]
[1644245039709,0.9884,43366.0,43350.0,0.00073886]
[1644245039908,1.00978665,43367.0,43350.0,0.00073886]
[1644245040109,0.27094844,43354.0,43350.0,0.00073886]
[1644245040309,0.23618872,43360.0,43350.0,0.00073886]
[1644245040511,0.02138665,43367.0,43350.0,0.00073886]
[1644245040716,0.02138665,43367.0,43358.0,0.05]
[1644245040912,0.01976939,43360.0,43358.0,0.05]
[1644245041111,0.01976939,43360.0,43355.0,0.05]
[1644245041541,0.01976939,43360.0,43353.0,0.00073883]
[1644245041811,0.01976939,43360.0,43352.0,0.05]
[1644245041812,0.01976939,43360.0,43356.0,0.11533]
[1644245042411,0.01976939,43360.0,43354.0,0.00073881]
[1644245042612,0.23412528,43359.0,43354.0,0.00073881]
[1644245042860,0.3100253,43358.0,43354.0,0.00073881]
[1644245043063,0.3100253,43358.0,43341.0,0.07]
[1644245043064,0.3100253,43358.0,43342.0,0.19170051]
[1644245043263,0.3100253,43358.0,43354.0,0.00073882]
[1644245043460,0.40695035,43357.0,43354.0,0.00073882]
[1644245044164,0.40695035,43357.0,43322.0,0.10077981]
[1644245044165,0.05,43347.0,43322.0,0.10077981]
[1644245044376,0.05,43347.0,43311.0,0.0589]
[1644245044377,0.05,43324.0,43311.0,0.02]
[1644245044562,0.3,43323.0,43311.0,0.015]
[1644245044759,0.07936931,43313.0,43311.0,0.015]
[1644245044963,0.82615,43325.0,43313.0,0.21696478]
[1644245045160,1.0804,43332.0,43314.0,0.3]
[1644245045161,0.2415,43332.0,43314.0,0.3]
[1644245045363,0.05,43334.0,43314.0,0.3]
[1644245045364,0.8431,43333.0,43314.0,0.3]
[1644245045560,0.8431,43333.0,43318.0,0.05]
[1644245045764,0.8431,43333.0,43314.0,0.3]
[1644245046161,0.8431,43333.0,43320.0,0.25147212]
[1644245046361,0.37668017,43338.0,43320.0,0.25147212]
[1644245046605,0.37668017,43338.0,43321.0,0.3]
[1644245047005,0.5,43343.0,43327.0,0.0005616]
[1644245047006,0.01818942,43333.0,43327.0,0.0005616]
[1644245047206,0.01818942,43333.0,43331.0,0.19059202]
[1644245047414,0.12491,43332.0,43331.0,0.19059202]
[1644245047608,0.12491,43332.0,43327.0,0.0005616]
[1644245047810,0.05,43329.0,43320.0,0.00224674]
[1644245048112,0.05,43329.0,43317.0,0.3]
[1644245048113,0.12491,43332.0,43327.0,0.00074001]
[1644245048312,0.12491,43332.0,43305.0,0.29607944]
[1644245048313,0.8,43326.0,43305.0,0.29607944]
[1644245048510,0.05,43309.0,43301.0,0.02]
[1644245048708,0.3,43325.0,43301.0,0.02]
[1644245048909,0.05,43321.0,43302.0,0.15679838]
[1644245049111,0.48007357,43326.0,43301.0,0.015]
[1644245049308,0.25211888,43317.0,43301.0,0.015]
[1644245049508,0.20211888,43317.0,43302.0,0.23093]
[1644245049708,0.05,43322.0,43309.0,0.25564952]
[1644245050011,0.01887357,43326.0,43310.0,0.3]
[1644245050210,0.01887357,43326.0,43307.0,0.3]
[1644245050211,0.05,43314.0,43307.0,0.3]
[1644245050461,0.08879649,43311.0,43302.0,0.23093]
[1644245050666,0.54829591,43310.0,43302.0,0.23093]
[1644245050866,0.24829591,43310.0,43302.0,0.23093]
[1644245051059,0.08879649,43311.0,43302.0,0.23093]
[1644245051060,0.05,43306.0,43302.0,0.23093]
[1644245051260,0.08879649,43311.0,43302.0,0.23093]
[1644245051461,0.01908261,43317.0,43302.0,0.23093]
[1644245051663,0.05,43313.0,43304.0,0.0007403]
[1644245051863,0.3,43315.0,43304.0,0.0007403]
[1644245052061,0.05,43305.0,43301.0,0.015]
[1644245052264,0.05,43305.0,43277.0,0.06931933]
[1644245052265,0.8,43300.0,43277.0,0.06931933]
[1644245052463,0.05,43289.0,43285.0,0.09]
[1644245052662,0.07196207,43287.0,43285.0,0.09]
[1644245053062,0.3127396,43288.0,43285.0,0.09]
[1644245053063,0.01965177,43300.0,43285.0,0.09]
[1644245053562,0.01965177,43300.0,43286.0,0.3]
[1644245053960,0.08966355,43296.0,43286.0,0.357754]
[1644245054214,0.08966355,43296.0,43285.0,0.09]
[1644245054417,0.05,43289.0,43285.0,0.09]
[1644245054614,0.22245026,43300.0,43286.0,0.3]
[1644245054615,0.01965177,43300.0,43286.0,0.3]
[1644245054812,0.01965177,43300.0,43287.0,0.23101]
[1644245054813,0.19456177,43300.0,43287.0,0.23101]
[1644245055014,0.05,43317.0,43298.0,0.057739]
[1644245055214,0.05,43317.0,43288.0,0.8]
[1644245055215,0.5,43325.0,43300.0,0.8]
[1644245055415,0.17491,43326.0,43307.0,0.05]
[1644245055613,0.17491,43326.0,43324.0,0.24539992]
[1644245055813,0.0999,43325.0,43324.0,0.24539992]
[1644245056019,0.4499,43325.0,43314.0,0.115425]
[1644245056214,0.35,43325.0,43306.0,0.057728]
[1644245056414,0.17491,43326.0,43306.0,0.057728]
[1644245056612,0.23848653,43319.0,43306.0,0.057728]
[1644245056813,0.23848653,43319.0,43304.0,0.05]
[1644245057014,0.07345756,43317.0,43302.0,0.05]
[1644245057415,0.00018497,43322.0,43302.0,0.21594869]
[1644245057617,0.17491,43326.0,43308.0,0.05]
[1644245057882,0.17491,43326.0,43309.0,0.0389]
[1644245057883,0.00018497,43312.0,43309.0,0.0389]
[1644245058078,0.00018497,43312.0,43310.0,0.0339]
[1644245058279,0.01794625,43325.0,43311.0,0.8389]
[1644245058479,0.01794625,43325.0,43313.0,0.2419852]
[1644245058480,0.56643968,43322.0,43313.0,0.2419852]
[1644245058681,0.17491,43326.0,43313.0,0.2419852]
[1644245058880,0.30502999,43323.0,43313.0,0.2919852]
[1644245059079,0.30502999,43323.0,43311.0,0.05998563]
[1644245059480,0.30502999,43323.0,43304.0,0.057732]
[1644245059979,0.30502999,43323.0,43305.0,0.20444769]
[1644245059980,0.02108563,43312.0,43305.0,0.20444769]
[1644245060579,0.06514108,43310.0,43305.0,0.05]
[1644245060785,0.06514108,43310.0,43304.0,0.057732]
[1644245060981,0.06514108,43310.0,43301.0,0.1]
[1644245061181,0.06514108,43310.0,43301.0,0.05]
[1644245061381,0.06514108,43310.0,43299.0,0.557139]
[1644245061604,0.06514108,43310.0,43304.0,0.20721436]
[1644245061905,0.02108563,43312.0,43304.0,0.20721436]
[1644245062105,0.02108563,43312.0,43304.0,0.26494636]
[1644245062305,0.02108563,43312.0,43304.0,0.25994636]
[1644245062706,0.08682194,43312.0,43304.0,0.35994636]
[1644245062904,0.02108563,43312.0,43304.0,0.40221436]
[1644245063107,0.02108563,43312.0,43305.0,0.0389]
[1644245063307,0.02108563,43312.0,43305.0,0.3389]
[1644245063506,0.02108563,43312.0,43305.0,0.8089]
[1644245063710,0.01996352,43334.0,43306.0,0.8]
[1644245063907,0.00018464,43314.0,43310.0,0.05]
[1644245064109,0.00018464,43314.0,43311.0,0.35998563]
[1644245064308,0.01996352,43334.0,43313.0,0.05771]
[1644245064508,0.01996352,43334.0,43314.0,0.3389]
[1644245064710,0.01996352,43334.0,43314.0,0.3889]
[1644245064909,0.25607405,43331.0,43314.0,0.0889]
[1644245065111,0.25607405,43331.0,43312.0,0.11542]
[1644245065112,0.05,43318.0,43312.0,0.11542]
[1644245065365,0.05,43318.0,43311.0,0.02108563]
[1644245065366,0.043,43318.0,43311.0,0.02108563]
[1644245065568,0.30607405,43331.0,43311.0,0.02108563]
[1644245065569,0.043,43321.0,43311.0,0.02108563]
[1644245065764,0.25607405,43331.0,43311.0,0.02108563]
[1644245065966,0.12491,43332.0,43320.0,0.007]
[1644245066165,0.12491,43332.0,43311.0,0.02108563]
[1644245066369,0.12491,43332.0,43313.0,0.007]
[1644245066566,0.12491,43332.0,43311.0,0.07880463]
[1644245066766,0.12491,43332.0,43311.0,0.02108563]
[1644245066968,0.54619803,43326.0,43320.0,0.22636405]
[1644245067168,0.17491,43326.0,43320.0,0.22636405]
[1644245067367,0.17491,43326.0,43322.0,0.007]
[1644245067569,0.00018469,43325.0,43322.0,0.007]
[1644245067767,0.00018469,43325.0,43320.0,0.22636405]
[1644245067968,0.00018469,43325.0,43320.0,0.22136405]
[1644245068367,0.17491,43326.0,43320.0,0.27136405]
[1644245068567,0.00061506,43325.0,43320.0,0.27136405]
[1644245068766,0.00061506,43325.0,43321.0,0.28065957]
[1644245069610,0.17491,43326.0,43320.0,0.28755226]
[1644245069611,0.17362524,43326.0,43320.0,0.28755226]
[1644245069811,0.00061506,43325.0,43320.0,0.28755226]
[1644245070810,0.17362524,43326.0,43320.0,0.33755226]
[1644245071011,0.17362524,43326.0,43325.0,0.007]
[1644245071217,0.12491,43332.0,43327.0,0.12788774]
[1644245071410,0.12491,43332.0,43327.0,0.17788774]
[1644245072014,0.12491,43332.0,43328.0,0.24556172]
[1644245072214,0.12491,43332.0,43331.0,0.007]
[1644245072215,0.12509452,43332.0,43331.0,0.007]
[1644245072610,0.12509452,43332.0,43328.0,0.27347307]
[1644245072858,0.12509452,43332.0,43327.0,0.18488774]
[1644245073055,0.12509452,43332.0,43331.0,0.007]
[1644245073255,0.12491,43332.0,43331.0,0.007]
[1644245073855,0.12491,43332.0,43331.0,0.002]
[1644245074457,0.25859,43332.0,43331.0,0.002]
[1644245075358,0.25859,43332.0,43331.0,0.29244984]
[1644245075558,0.25859,43332.0,43331.0,0.34244984]
[1644245075559,0.12491,43332.0,43331.0,0.34244984]
[1644245075757,0.12491,43332.0,43331.0,0.55631548]
[1644245076057,0.00161352,43334.0,43331.0,0.55631548]
[1644245076358,0.02,43349.0,43333.0,0.8]
[1644245076359,0.01761352,43339.0,43333.0,0.8]
[1644245076613,0.02,43349.0,43333.0,0.8]
[1644245076614,0.02,43349.0,43338.0,0.059681]
[1644245076911,0.004,43354.0,43345.0,0.002]
[1644245077107,0.08912,43353.0,43352.0,0.22924886]
[1644245077305,0.17824,43353.0,43352.0,0.22924886]
[1644245077709,0.08910906,43364.0,43352.0,0.22924886]
[1644245077710,0.048,43373.0,43354.0,0.8]
[1644245077908,0.004,43376.0,43365.0,0.002]
[1644245078507,0.004,43376.0,43371.0,0.002]
[1644245078711,0.002,43377.0,43372.0,0.8]
[1644245078909,0.002,43377.0,43373.0,0.40549919]
[1644245079109,0.002,43377.0,43374.0,0.002]
[1644245079110,0.11168,43376.0,43374.0,0.002]
[1644245079309,0.001,43400.0,43375.0,0.8889]
[1644245079511,0.001,43400.0,43376.0,0.3]
[1644245079709,0.001,43400.0,43377.0,0.0389]
[1644245079909,0.10623265,43390.0,43383.0,0.2218174]
[1644245080116,0.55,43383.0,43371.0,0.230448]
[1644245080352,0.30358329,43385.0,43371.0,0.230448]
[1644245080353,0.048,43382.0,43371.0,0.230448]
[1644245080558,0.02,43389.0,43378.0,0.002]
[1644245080753,0.02,43389.0,43380.0,0.002]
[1644245080754,0.00074362,43385.0,43380.0,0.002]
[1644245080958,0.02,43389.0,43382.0,0.5]
[1644245081153,0.02,43389.0,43381.0,0.115228]
[1644245081154,0.048,43388.0,43381.0,0.115228]
[1644245081354,0.02,43389.0,43381.0,0.115228]
[1644245081556,0.02,43389.0,43382.0,0.20979915]
[1644245081754,0.24954271,43388.0,43372.0,0.154135]
[1644245081961,0.24954271,43388.0,43371.0,0.01874783]
[1644245081962,0.048,43373.0,43371.0,0.01874783]
[1644245082259,0.048,43379.0,43371.0,0.01874783]
[1644245082956,0.7904,43386.0,43371.0,0.01874783]
[1644245083156,0.00134478,43388.0,43371.0,0.01874783]
[1644245083157,0.048,43383.0,43373.0,0.3359323]
[1644245083455,0.00057085,43387.0,43374.0,0.302]
[1644245083658,0.00057085,43387.0,43374.0,0.35]
[1644245083955,0.07430604,43384.0,43374.0,0.3]
[1644245084216,0.00134478,43388.0,43382.0,0.19513169]
[1644245084417,0.048,43385.0,43372.0,0.165256]
[1644245084616,0.0005709,43387.0,43372.0,0.165256]
[1644245084617,0.048,43375.0,43372.0,0.165256]
[1644245084816,0.048,43375.0,43373.0,0.115284]
[1644245085018,0.0005709,43387.0,43373.0,0.115284]
[1644245085019,0.0005709,43387.0,43374.0,1.15]
[1644245085216,0.0005709,43387.0,43386.0,0.05]
[1644245085414,0.0481,43406.0,43377.0,0.3]
[1644245085415,0.21115083,43397.0,43377.0,0.3]
[1644245085613,0.001,43398.0,43389.0,0.07366274]
[1644245085813,0.001,43398.0,43381.0,0.3]
[1644245086015,0.001,43398.0,43377.0,0.05]
[1644245086016,0.37795769,43395.0,43377.0,0.05]
[1644245086218,0.37795769,43395.0,43375.0,0.7679]
[1644245086415,0.37695769,43395.0,43378.0,0.05764]
[1644245086615,0.23816925,43390.0,43378.0,0.05764]
[1644245086817,0.08276437,43380.0,43374.0,0.3]
[1644245087019,0.23816925,43390.0,43374.0,0.26096146]
[1644245087020,0.22852337,43382.0,43374.0,0.26096146]
[1644245087216,0.22852337,43382.0,43376.0,0.01931273]
[1644245087420,0.3,43389.0,43377.0,0.057638]
[1644245087617,0.23816925,43390.0,43377.0,0.057638]
[1644245087855,0.05,43395.0,43376.0,0.01931273]
[1644245087856,0.31883582,43389.0,43376.0,0.01931273]
[1644245088054,0.8,43393.0,43374.0,0.06651803]
[1644245088455,0.21789774,43382.0,43374.0,0.06651803]
[1644245088655,0.21789774,43382.0,43373.0,0.115284]
[1644245089056,0.21789774,43382.0,43373.0,0.39583326]
[1644245089254,0.21789774,43382.0,43373.0,0.05]
[1644245089656,0.24139102,43375.0,43373.0,0.05]
[1644245089856,0.23639102,43375.0,43373.0,0.05]
[1644245090061,0.0001827,43385.0,43374.0,0.2795224]
[1644245090259,0.7972566,43393.0,43381.0,0.05]
[1644245090559,0.7972566,43393.0,43374.0,0.3295224]
[1644245090560,0.00018271,43385.0,43382.0,0.05]
[1644245090755,0.00018271,43385.0,43383.0,0.05]
[1644245090959,0.06670334,43378.0,43373.0,0.05]
[1644245091159,0.3,43377.0,43372.0,0.02000419]
[1644245091364,0.295,43377.0,43372.0,0.02000419]
[1644245091612,0.06670334,43378.0,43349.0,0.2892]
[1644245091613,0.36276712,43365.0,43349.0,0.2892]
[1644245091807,0.36276712,43365.0,43346.0,0.280569]